bitfinex-derivatives/quotes_BTCF0:USTF0_20251225
["timestamp","ask_amount","ask_price","bid_price","bid_amount"]
[1766646017448,0.0225571,87880.0,87871.0,0.03]
[1766646024360,0.01117,87880.0,87871.0,0.03]
[1766646036476,0.0225571,87880.0,87871.0,0.03]
[1766646036870,0.04098983,87885.0,87871.0,0.03]
[1766646037070,0.011387,87881.0,87871.0,0.03]
[1766646037269,0.04450938,87890.0,87871.0,0.03]
[1766646037574,0.0113868,87883.0,87871.0,0.03]
[1766646037880,0.0113872,87879.0,87871.0,0.03]
[1766646038471,0.00351955,87890.0,87871.0,0.03]
[1766646040780,0.011387,87881.0,87871.0,0.03]
[1766646041486,0.0113873,87879.0,87871.0,0.03]
[1766646042582,0.00351955,87890.0,87871.0,0.03]
[1766646042882,0.0113871,87880.0,87871.0,0.03]
[1766646045782,0.0113874,87878.0,87871.0,0.03]
[1766646051486,0.011387,87881.0,87871.0,0.03]
[1766646051685,0.0113869,87882.0,87871.0,0.03]
[1766646053787,0.04098983,87886.0,87871.0,0.03]
[1766646053988,0.0113868,87883.0,87871.0,0.03]
[1766646058390,0.04098983,87886.0,87871.0,0.03]
[1766646058685,0.00351955,87890.0,87874.0,0.0113878]
[1766646058885,0.00351955,87890.0,87874.0,0.0413878]
[1766646059088,0.00351955,87890.0,87874.0,0.03]
[1766646059588,0.0113859,87889.0,87874.0,0.03]
[1766646059789,0.0113863,87887.0,87874.0,0.03]
[1766646060192,0.0113865,87885.0,87874.0,0.03]
[1766646062694,0.0113861,87888.0,87874.0,0.03]
[1766646064499,0.0113864,87886.0,87874.0,0.03]
[1766646065097,0.0113866,87884.0,87874.0,0.03]
[1766646069496,0.0113862,87887.0,87874.0,0.03]
[1766646071700,0.00351955,87890.0,87874.0,0.03]
[1766646072209,0.011386,87889.0,87874.0,0.03]
[1766646072501,0.0113862,87887.0,87874.0,0.03]
[1766646074903,0.0113865,87885.0,87874.0,0.03]
[1766646078006,0.00351955,87890.0,87874.0,0.03]
[1766646079208,0.0113863,87887.0,87874.0,0.03]
[1766646082708,0.00351955,87890.0,87874.0,0.03]
[1766646084209,0.0113862,87887.0,87874.0,0.03]
[1766646085310,0.0113867,87883.0,87874.0,0.03]
[1766646085504,0.00351955,87890.0,87874.0,0.03]
[1766646085712,0.0113878,87875.0,87863.0,0.04112]
[1766646085902,0.0113878,87875.0,87863.0,0.03]
[1766646093414,0.0113881,87872.0,87863.0,0.03]
[1766646098226,0.0113877,87876.0,87863.0,0.03]
[1766646100136,0.0113879,87874.0,87863.0,0.03]
[1766646103333,0.0113882,87872.0,87863.0,0.03]
[1766646104038,0.0113878,87875.0,87863.0,0.03]
[1766646114843,0.03836,87879.0,87863.0,0.03]
[1766646115033,0.0113879,87874.0,87863.0,0.03]
[1766646123342,0.0113875,87877.0,87863.0,0.03]
[1766646132859,0.0113876,87876.0,87863.0,0.03]
[1766646134154,0.0113874,87878.0,87863.0,0.03]
[1766646136555,0.03836,87879.0,87863.0,0.03]
[1766646138255,0.0113877,87876.0,87863.0,0.03]
[1766646138757,0.0113878,87875.0,87863.0,0.03]
[1766646140757,0.0497473,87879.0,87863.0,0.03]
[1766646141356,0.0113875,87877.0,87863.0,0.03]
[1766646141862,0.0113878,87875.0,87863.0,0.03]
[1766646144865,0.0113881,87873.0,87863.0,0.03]
[1766646147665,0.03836,87879.0,87863.0,0.03]
[1766646147964,0.03836,87879.0,87853.0,0.0049349]
[1766646147965,0.0793472,87879.0,87845.0,0.04088846]
[1766646148157,0.0793472,87879.0,87845.0,0.03]
[1766646148158,0.0113895,87862.0,87845.0,0.03]
[1766646149059,0.04916,87863.0,87848.0,0.0113911]
[1766646149261,7.4e-07,87862.0,87848.0,0.0413911]
[1766646149461,0.04916,87863.0,87848.0,0.0413911]
[1766646150860,0.04916,87863.0,87848.0,0.03]
[1766646152254,0.0605493,87863.0,87848.0,0.03]
[1766646152765,0.0113895,87862.0,87848.0,0.03]
[1766646154463,0.0113897,87860.0,87848.0,0.03]
[1766646162878,0.01693,87863.0,87848.0,0.03]
[1766646164179,0.0283193,87863.0,87848.0,0.03]
[1766646166782,0.01693,87863.0,87848.0,0.0413911]
[1766646166982,0.0283193,87863.0,87848.0,0.0413911]
[1766646169183,0.0283193,87863.0,87848.0,0.03]
[1766646172187,0.0113893,87863.0,87848.0,0.03]
[1766646173389,0.02482255,87862.0,87848.0,0.03]
[1766646173688,0.0113893,87863.0,87848.0,0.03]
[1766646173889,0.02482254,87862.0,87848.0,0.03]
[1766646174089,0.0113893,87863.0,87848.0,0.03]
[1766646174290,0.02482254,87862.0,87848.0,0.03]
[1766646174490,0.0113893,87863.0,87848.0,0.03]
[1766646174691,0.02482621,87862.0,87848.0,0.03]
[1766646174891,0.0113893,87863.0,87848.0,0.03]
[1766646175090,0.02482621,87862.0,87848.0,0.03]
[1766646175291,0.0248309,87861.0,87848.0,0.03]
[1766646175490,0.0113893,87863.0,87848.0,0.03]
[1766646175690,0.02483091,87862.0,87848.0,0.03]
[1766646175986,0.02483091,87861.0,87848.0,0.03]
[1766646176187,0.0113893,87863.0,87848.0,0.03]
[1766646176385,0.02483737,87862.0,87848.0,0.03]
[1766646176586,0.0113893,87863.0,87848.0,0.03]
[1766646176587,0.02483737,87861.0,87848.0,0.03]
[1766646176787,0.0113893,87863.0,87848.0,0.03]
[1766646176988,0.02483737,87862.0,87848.0,0.03]
[1766646177188,0.02483737,87861.0,87848.0,0.03]
[1766646177390,0.02483737,87860.0,87848.0,0.03]
[1766646177690,0.02483737,87859.0,87848.0,0.03]
[1766646177990,0.0113896,87861.0,87848.0,0.03]
[1766646178198,0.02485144,87860.0,87848.0,0.03]
[1766646178396,0.02485144,87859.0,87848.0,0.03]
[1766646178599,0.0113896,87861.0,87848.0,0.03]
[1766646178798,0.02485157,87860.0,87848.0,0.03]
[1766646179097,0.02485157,87859.0,87848.0,0.03]
[1766646179298,0.0113896,87861.0,87848.0,0.03]
[1766646179500,0.02485123,87860.0,87848.0,0.03]
[1766646179800,0.02485123,87859.0,87848.0,0.03]
[1766646180000,0.0113896,87861.0,87848.0,0.03]
[1766646180198,0.02485123,87860.0,87848.0,0.03]
[1766646180500,0.02485123,87859.0,87848.0,0.03]
[1766646180704,0.0113896,87861.0,87848.0,0.03]
[1766646181000,0.02485122,87860.0,87848.0,0.03]
[1766646181200,0.02485122,87859.0,87848.0,0.03]
[1766646181401,0.0113896,87861.0,87848.0,0.03]
[1766646181601,0.02485091,87860.0,87848.0,0.03]
[1766646181789,0.02485091,87859.0,87848.0,0.0413911]
[1766646181988,0.0113893,87863.0,87848.0,0.0413911]
[1766646182196,0.02485065,87862.0,87848.0,0.0413911]
[1766646182396,0.02485065,87861.0,87848.0,0.0413911]
[1766646182590,0.02485065,87860.0,87848.0,0.0413911]
[1766646182788,0.02485065,87859.0,87848.0,0.0413911]
[1766646182990,0.0113893,87863.0,87848.0,0.0413911]
[1766646183196,0.02485041,87862.0,87848.0,0.0413911]
[1766646183505,0.02485041,87861.0,87848.0,0.0413911]
[1766646183706,0.02485041,87860.0,87848.0,0.0413911]
[1766646184006,0.02485041,87859.0,87848.0,0.0413911]
[1766646184305,0.0113893,87863.0,87848.0,0.0413911]
[1766646184507,0.02485019,87862.0,87848.0,0.0413911]
[1766646184706,0.02485019,87861.0,87848.0,0.0413911]
[1766646184899,0.02485019,87860.0,87848.0,0.0413911]
[1766646185099,0.02485019,87859.0,87848.0,0.0413911]
[1766646185299,0.0113893,87863.0,87848.0,0.0413911]
[1766646185500,0.02485005,87862.0,87848.0,0.0413911]
[1766646185703,0.02485005,87861.0,87848.0,0.0413911]
[1766646185901,0.02485005,87860.0,87848.0,0.0413911]
[1766646186100,0.02485005,87859.0,87848.0,0.0413911]
[1766646186309,0.0113893,87863.0,87848.0,0.0413911]
[1766646186509,0.02484992,87862.0,87848.0,0.0413911]
[1766646186806,0.02484992,87861.0,87848.0,0.0413911]
[1766646187006,0.02484992,87860.0,87848.0,0.0413911]
[1766646187208,0.02484992,87859.0,87848.0,0.0413911]
[1766646187408,0.0113893,87863.0,87848.0,0.0413911]
[1766646187610,0.02484986,87862.0,87848.0,0.0413911]
[1766646187809,0.02484986,87861.0,87848.0,0.0413911]
[1766646188109,0.02484986,87860.0,87848.0,0.0413911]
[1766646188311,0.02484986,87859.0,87848.0,0.0413911]
[1766646188510,0.0113893,87863.0,87848.0,0.0413911]
[1766646188707,0.02484982,87862.0,87848.0,0.0413911]
[1766646188909,0.02484982,87861.0,87848.0,0.0413911]
[1766646189108,0.02484982,87860.0,87848.0,0.0413911]
[1766646189308,0.02484982,87859.0,87848.0,0.0413911]
[1766646189610,0.0113893,87863.0,87848.0,0.0413911]
[1766646189810,0.02484986,87862.0,87848.0,0.0413911]
[1766646190013,0.02484986,87861.0,87850.0,0.0113908]
[1766646190211,0.02484986,87860.0,87850.0,0.0413908]
[1766646190401,0.02484986,87859.0,87850.0,0.0413908]
[1766646190601,0.00017074,87864.0,87850.0,0.0413908]
[1766646190803,0.0248499,87863.0,87850.0,0.03]
[1766646190998,0.0248499,87862.0,87853.0,0.0113905]
[1766646191204,0.0113881,87872.0,87855.0,0.0113902]
[1766646191507,0.0113881,87872.0,87855.0,0.0413902]
[1766646192213,0.01155859,87872.0,87855.0,0.03]
[1766646192906,0.01155859,87872.0,87855.0,0.0413902]
[1766646193211,0.00017049,87872.0,87855.0,0.03]
[1766646194215,0.00017049,87872.0,87858.0,0.0113898]
[1766646194513,0.00017049,87872.0,87858.0,0.0413898]
[1766646195814,0.01155869,87872.0,87858.0,0.03]
[1766646197215,0.00017049,87872.0,87858.0,0.03]
[1766646202525,0.00017049,87872.0,87858.0,0.0413898]
[1766646203728,0.00017049,87872.0,87858.0,0.03]
[1766646211638,0.0113884,87870.0,87858.0,0.03]
[1766646215437,0.00017049,87872.0,87858.0,0.03]
[1766646216338,0.0113883,87871.0,87858.0,0.03]
[1766646221053,0.0113886,87869.0,87858.0,0.03]
[1766646225063,0.0113884,87870.0,87858.0,0.03]
[1766646225960,0.0113885,87869.0,87858.0,0.03]
[1766646227757,0.0113884,87870.0,87858.0,0.03]
[1766646229569,0.00017049,87872.0,87858.0,0.03]
[1766646230270,0.0113883,87871.0,87858.0,0.03]
[1766646236572,0.0113886,87869.0,87858.0,0.03]
[1766646241081,0.0113888,87867.0,87858.0,0.03]
[1766646241281,0.00017049,87872.0,87845.0,0.00017074]
[1766646241587,0.00017049,87872.0,87845.0,0.02017074]
[1766646241771,0.0113896,87861.0,87845.0,0.02017074]
[1766646242080,0.0113896,87861.0,87835.0,0.06324387]
[1766646242081,0.0113918,87844.0,87832.0,0.0013]
[1766646242270,0.0113918,87844.0,87833.0,0.03227706]
[1766646242576,0.01128,87851.0,87833.0,0.03227706]
[1766646242772,0.0113924,87840.0,87833.0,0.03227706]
[1766646243168,0.0113924,87840.0,87833.0,0.02]
[1766646243363,0.0113926,87838.0,87828.0,0.00017074]
[1766646243575,0.0113926,87838.0,87828.0,0.03017074]
[1766646246279,0.0113932,87834.0,87828.0,4e-08]
[1766646254290,0.0113926,87838.0,87828.0,4e-08]
[1766646256490,0.0113929,87836.0,87828.0,4e-08]
[1766646257290,0.0113937,87830.0,87808.0,0.0113963]
[1766646257492,0.0113937,87830.0,87809.0,0.00848]
[1766646257692,0.0113937,87830.0,87809.0,0.03848]
[1766646258394,0.00013701,87829.0,87811.0,0.00017074]
[1766646258584,0.00013701,87829.0,87811.0,0.03017074]
[1766646258892,0.0113942,87825.0,87811.0,0.03017074]
[1766646259094,0.0113949,87820.0,87811.0,0.03017074]
[1766646259686,0.0113952,87817.0,87811.0,0.03017074]
[1766646259994,0.0113951,87819.0,87811.0,0.03017074]
[1766646263789,0.0113944,87824.0,87811.0,0.03017074]
[1766646263980,0.0113947,87822.0,87811.0,0.03017074]
[1766646273203,0.02461349,87821.0,87811.0,0.03017074]
[1766646273405,0.0113947,87822.0,87811.0,0.03017074]
[1766646273702,0.02461348,87821.0,87811.0,0.03017074]
[1766646273903,0.0113947,87822.0,87811.0,0.03017074]
[1766646274103,0.02461348,87821.0,87811.0,0.03017074]
[1766646274301,0.0113947,87822.0,87811.0,0.03017074]
[1766646274603,0.02461668,87821.0,87811.0,0.03017074]
[1766646274803,0.0113947,87822.0,87811.0,0.03017074]
[1766646275003,0.02461668,87821.0,87811.0,0.03017074]
[1766646275204,0.0113947,87822.0,87811.0,0.03017074]
[1766646275407,0.02462079,87821.0,87811.0,0.03017074]
[1766646275605,0.0113947,87822.0,87811.0,0.03017074]
[1766646275802,0.02462079,87821.0,87811.0,0.03017074]
[1766646276001,0.0113947,87822.0,87811.0,0.03017074]
[1766646276201,0.02462079,87821.0,87811.0,0.03017074]
[1766646276503,0.02462079,87820.0,87811.0,0.03017074]
[1766646276701,0.0113947,87822.0,87811.0,0.03017074]
[1766646276902,0.02462491,87821.0,87811.0,0.03017074]
[1766646277207,0.02462491,87820.0,87811.0,0.03017074]
[1766646277404,0.0113947,87822.0,87811.0,0.03017074]
[1766646277605,0.02462886,87821.0,87811.0,0.03017074]
[1766646277911,0.02462886,87820.0,87811.0,0.03017074]
[1766646278098,0.0113947,87822.0,87811.0,0.03017074]
[1766646278409,0.02463236,87821.0,87811.0,0.03017074]
[1766646278706,0.02463236,87820.0,87811.0,0.03017074]
[1766646278902,0.0113947,87822.0,87811.0,0.03017074]
[1766646279103,0.02463236,87821.0,87811.0,0.03017074]
[1766646279303,0.02463236,87820.0,87811.0,0.03017074]
[1766646279507,0.02463236,87819.0,87811.0,0.03017074]
[1766646279694,0.0113947,87822.0,87811.0,0.03017074]
[1766646279901,0.02463599,87821.0,87811.0,0.03017074]
[1766646280204,0.02463599,87820.0,87811.0,0.03017074]
[1766646280405,0.00017074,87827.0,87811.0,0.03017074]
[1766646280609,0.02463656,87826.0,87811.0,0.03017074]
[1766646280798,0.02463656,87825.0,87811.0,0.03017074]
[1766646280998,0.02463656,87824.0,87811.0,0.03017074]
[1766646281198,0.03603106,87823.0,87811.0,0.03017074]
[1766646281406,0.02463656,87822.0,87811.0,0.03017074]
[1766646283500,0.02463656,87821.0,87811.0,0.03017074]
[1766646283699,0.0113941,87826.0,87811.0,0.03017074]
[1766646288913,0.00017074,87827.0,87811.0,0.03017074]
[1766646289815,0.0113944,87824.0,87811.0,0.03017074]
[1766646290016,0.03772,87824.0,87811.0,0.03017074]
[1766646293017,0.0113943,87825.0,87811.0,0.03017074]
[1766646293219,0.00013701,87829.0,87811.0,0.03017074]
[1766646293421,0.04080443,87841.0,87811.0,0.03017074]
[1766646293614,0.011393,87835.0,87812.0,0.03364]
[1766646293821,0.011393,87835.0,87818.0,0.011395]
[1766646294018,0.00708,87838.0,87818.0,0.03]
[1766646294217,0.0113932,87833.0,87818.0,0.03]
[1766646295015,0.0113935,87831.0,87818.0,0.03]
[1766646310134,0.0113931,87834.0,87818.0,0.03]
[1766646313040,0.00017074,87837.0,87821.0,0.0113947]
[1766646313239,0.0113929,87836.0,87821.0,0.03]
[1766646318249,0.0113931,87834.0,87821.0,0.03]
[1766646319351,0.00017074,87837.0,87811.0,0.00017074]
[1766646319550,0.00017074,87837.0,87811.0,0.02017074]
[1766646319851,0.00017074,87837.0,87811.0,0.03156664]
[1766646320153,0.0113934,87832.0,87813.0,0.0113957]
[1766646320354,0.0113934,87832.0,87813.0,0.0413957]
[1766646321349,0.0113934,87832.0,87813.0,0.03]
[1766646321847,0.0113936,87830.0,87813.0,0.03]
[1766646322648,0.00912,87834.0,87813.0,0.03]
[1766646324153,0.0113939,87828.0,87813.0,0.03]
[1766646324847,0.0113935,87831.0,87813.0,0.03]
[1766646331159,0.00912,87834.0,87814.0,0.0113955]
[1766646331360,0.0113933,87832.0,87814.0,0.03]
[1766646333464,0.0113937,87830.0,87814.0,0.03]
[1766646337958,0.0113939,87828.0,87814.0,0.03]
[1766646344068,0.0113941,87827.0,87814.0,0.03]
[1766646348871,0.05164,87834.0,87815.0,0.0413954]
[1766646349165,0.0113937,87829.0,87815.0,0.0413954]
[1766646352577,0.0113933,87832.0,87817.0,0.0113952]
[1766646352777,0.0113933,87832.0,87817.0,0.0413952]
[1766646353978,0.0113933,87832.0,87817.0,0.03]
[1766646361890,0.05164,87834.0,87817.0,0.03]
[1766646362085,0.0630332,87834.0,87817.0,0.0413952]
[1766646362288,0.0113935,87831.0,87817.0,0.03]
[1766646362485,0.0113937,87829.0,87817.0,0.03]
[1766646362790,0.00017074,87837.0,87817.0,0.03]
[1766646362791,0.0113935,87831.0,87817.0,0.03]
[1766646367691,0.0113938,87828.0,87817.0,0.03]
[1766646367886,0.02428,87836.0,87817.0,0.03]
[1766646367887,0.0113943,87825.0,87817.0,0.03]
[1766646368093,0.02428,87836.0,87817.0,0.03]
[1766646368285,0.0113939,87828.0,87817.0,0.03]
[1766646368890,0.02428,87836.0,87817.0,0.03]
[1766646369996,0.0113932,87833.0,87817.0,0.03]
[1766646371096,0.02428,87836.0,87817.0,0.0413952]
[1766646371595,0.0113932,87833.0,87817.0,0.03]
[1766646372699,0.02428,87836.0,87817.0,0.03]
[1766646372899,0.0113933,87832.0,87817.0,0.03]
[1766646374203,0.02428,87836.0,87817.0,0.03]
[1766646374498,0.0113939,87828.0,87817.0,0.03]
[1766646374700,0.02428,87836.0,87817.0,0.03]
[1766646376606,0.011394,87827.0,87817.0,0.03]
[1766646376915,0.0113937,87829.0,87817.0,0.03]
[1766646382505,0.02428,87836.0,87817.0,0.03]
[1766646382808,0.0113936,87830.0,87817.0,0.03]
[1766646393014,0.0113934,87832.0,87817.0,0.03]
[1766646394217,0.0113936,87830.0,87817.0,0.03]
[1766646394818,0.0113935,87831.0,87817.0,0.03]
[1766646400522,0.0113937,87829.0,87817.0,0.03]
[1766646405528,0.0248163,87828.0,87817.0,0.03]
[1766646405727,0.0248163,87827.0,87817.0,0.03]
[1766646405927,0.0248163,87826.0,87817.0,0.03]
[1766646406126,0.0113937,87829.0,87817.0,0.03]
[1766646406329,0.02481626,87828.0,87817.0,0.03]
[1766646406524,0.02481626,87827.0,87817.0,0.03]
[1766646406724,0.02481626,87826.0,87817.0,0.03]
[1766646406930,0.0113937,87829.0,87817.0,0.03]
[1766646407127,0.02481626,87828.0,87817.0,0.03]
[1766646407319,0.02481626,87827.0,87817.0,0.03]
[1766646407519,0.02481626,87826.0,87817.0,0.03]
[1766646407819,0.0113937,87829.0,87817.0,0.03]
[1766646408020,0.02481618,87828.0,87817.0,0.03]
[1766646408329,0.02481618,87827.0,87817.0,0.03]
[1766646408629,0.02481618,87826.0,87817.0,0.03]
[1766646408827,0.0113936,87830.0,87817.0,0.03]
[1766646409026,0.02481615,87829.0,87817.0,0.03]
[1766646409227,0.02481615,87828.0,87817.0,0.03]
[1766646409430,0.02481615,87827.0,87817.0,0.03]
[1766646409631,0.02481615,87826.0,87817.0,0.03]
[1766646409831,0.0113936,87830.0,87817.0,0.03]
[1766646410031,0.02481613,87829.0,87817.0,0.03]
[1766646410231,0.02481613,87828.0,87817.0,0.03]
[1766646410433,0.02481613,87827.0,87817.0,0.03]
[1766646410633,0.01702613,87826.0,87817.0,0.03]
[1766646410835,0.0113934,87832.0,87817.0,0.03]
[1766646414141,0.0113936,87830.0,87817.0,0.03]
[1766646418256,0.011394,87827.0,87817.0,0.03]
[1766646418559,0.02428,87836.0,87817.0,0.03]
[1766646420160,0.0113936,87830.0,87817.0,0.03]
[1766646422765,0.02475128,87829.0,87817.0,0.03]
[1766646422964,0.02475128,87828.0,87817.0,0.03]
[1766646423265,0.0113936,87830.0,87817.0,0.03]
[1766646423563,0.02475128,87829.0,87817.0,0.03]
[1766646423766,0.02475128,87828.0,87817.0,0.03]
[1766646423963,0.0113936,87830.0,87817.0,0.03]
[1766646424164,0.02475128,87829.0,87817.0,0.03]
[1766646424363,0.03614518,87828.0,87817.0,0.03]
[1766646424563,0.0113939,87828.0,87817.0,0.03]
[1766646428275,0.02475165,87827.0,87817.0,0.03]
[1766646428464,0.02475165,87826.0,87817.0,0.03]
[1766646428661,0.0113939,87828.0,87817.0,0.03]
[1766646428863,0.02475165,87827.0,87817.0,0.03]
[1766646429174,0.02475165,87826.0,87817.0,0.03]
[1766646429379,0.0113937,87829.0,87817.0,0.03]
[1766646429669,0.024752,87828.0,87817.0,0.03]
[1766646429869,0.024752,87827.0,87817.0,0.03]
[1766646430071,0.024752,87826.0,87817.0,0.03]
[1766646430269,0.0113937,87829.0,87817.0,0.03]
[1766646430475,0.024752,87828.0,87817.0,0.03]
[1766646430674,0.024752,87827.0,87817.0,0.03]
[1766646430866,0.024752,87826.0,87817.0,0.03]
[1766646431158,0.0113937,87829.0,87817.0,0.03]
[1766646431365,0.024752,87828.0,87817.0,0.03]
[1766646431563,0.024752,87827.0,87817.0,0.03]
[1766646431864,0.024752,87826.0,87817.0,0.03]
[1766646432064,0.0113937,87829.0,87817.0,0.03]
[1766646432265,0.02475201,87828.0,87817.0,0.03]
[1766646432470,0.02475201,87827.0,87817.0,0.03]
[1766646432671,0.02475201,87826.0,87817.0,0.03]
[1766646432868,0.0113937,87829.0,87817.0,0.03]
[1766646433064,0.02475201,87828.0,87817.0,0.03]
[1766646433264,0.02475201,87827.0,87817.0,0.03]
[1766646433473,0.02475201,87826.0,87817.0,0.03]
[1766646433674,0.0113937,87829.0,87817.0,0.03]
[1766646433877,0.02475201,87828.0,87817.0,0.03]
[1766646434076,0.02475201,87827.0,87817.0,0.03]
[1766646434268,0.02475201,87826.0,87817.0,0.03]
[1766646434574,0.0113937,87829.0,87817.0,0.03]
[1766646434761,0.02475202,87828.0,87817.0,0.03]
[1766646434960,0.02475202,87827.0,87817.0,0.03]
[1766646435173,0.02475202,87826.0,87817.0,0.03]
[1766646435373,0.0113937,87829.0,87817.0,0.03]
[1766646435570,0.02474986,87828.0,87817.0,0.03]
[1766646435760,0.02474986,87827.0,87817.0,0.03]
[1766646435965,0.02474986,87826.0,87817.0,0.03]
[1766646436176,0.0113937,87829.0,87817.0,0.03]
[1766646436378,0.02474997,87828.0,87817.0,0.03]
[1766646436569,0.02474997,87827.0,87817.0,0.03]
[1766646436771,0.02474997,87826.0,87817.0,0.03]
[1766646437068,0.0113937,87829.0,87817.0,0.03]
[1766646442281,0.0113941,87826.0,87817.0,0.03]
[1766646449283,0.0113939,87828.0,87817.0,0.03]
[1766646449484,0.0113941,87826.0,87817.0,0.03]
[1766646452487,0.0113938,87829.0,87817.0,0.03]
[1766646452685,0.02474738,87828.0,87817.0,0.03]
[1766646452985,0.02474738,87827.0,87817.0,0.03]
[1766646453284,0.0113938,87829.0,87817.0,0.03]
[1766646453285,0.02474738,87826.0,87817.0,0.03]
[1766646453479,0.0113938,87829.0,87817.0,0.03]
[1766646453681,0.02474737,87828.0,87817.0,0.03]
[1766646453980,0.02474737,87827.0,87817.0,0.03]
[1766646454182,0.02474737,87826.0,87817.0,0.03]
[1766646454377,0.0113938,87829.0,87817.0,0.03]
[1766646454578,0.02474738,87828.0,87817.0,0.03]
[1766646454785,0.02474738,87827.0,87817.0,0.03]
[1766646454983,0.02474738,87826.0,87817.0,0.03]
[1766646455184,0.0113938,87829.0,87817.0,0.03]
[1766646455484,0.02474738,87828.0,87817.0,0.03]
[1766646455688,0.02474738,87827.0,87817.0,0.03]
[1766646455886,0.02474738,87826.0,87817.0,0.03]
[1766646456184,0.0113938,87829.0,87817.0,0.03]
[1766646456385,0.02474739,87828.0,87817.0,0.03]
[1766646456590,0.02474739,87827.0,87817.0,0.03]
[1766646456783,0.02474739,87826.0,87817.0,0.03]
[1766646456984,0.0113938,87829.0,87817.0,0.03]
[1766646457183,0.02474739,87828.0,87817.0,0.03]
[1766646457388,0.02474739,87827.0,87817.0,0.03]
[1766646457583,0.02474739,87826.0,87817.0,0.03]
[1766646457785,0.0113938,87829.0,87817.0,0.03]
[1766646457986,0.02474741,87828.0,87817.0,0.03]
[1766646458184,0.02474741,87827.0,87817.0,0.03]
[1766646458386,0.0113938,87829.0,87817.0,0.03]
[1766646458387,0.02474741,87826.0,87817.0,0.03]
[1766646458586,0.0113938,87829.0,87817.0,0.03]
[1766646458791,0.02474745,87828.0,87817.0,0.03]
[1766646458992,0.02474745,87827.0,87817.0,0.03]
[1766646459293,0.03614155,87826.0,87817.0,0.03]
[1766646459590,0.0113941,87826.0,87817.0,0.03]
[1766646468803,0.0113938,87829.0,87817.0,0.03]
[1766646469100,0.02483176,87828.0,87817.0,0.03]
[1766646469294,0.02483176,87827.0,87817.0,0.03]
[1766646469496,0.02483176,87826.0,87817.0,0.03]
[1766646477221,0.02483176,87825.0,87817.0,0.03]
[1766646477423,0.02428,87836.0,87817.0,0.03]
[1766646477622,0.0113937,87829.0,87817.0,0.03]
[1766646477823,0.02483245,87828.0,87817.0,0.03]
[1766646478022,0.02483245,87827.0,87817.0,0.03]
[1766646478322,0.02483245,87826.0,87817.0,0.03]
[1766646478524,0.0113937,87829.0,87817.0,0.03]
[1766646478820,0.02439109,87828.0,87817.0,0.03]
[1766646479022,0.0113937,87829.0,87817.0,0.03]
[1766646479526,0.0113934,87832.0,87817.0,0.03]
[1766646480422,0.0113936,87830.0,87817.0,0.03]
[1766646480824,0.00017074,87837.0,87817.0,0.03]
[1766646482327,0.0113933,87833.0,87817.0,0.03]
[1766646482829,0.0113928,87836.0,87817.0,0.03]
[1766646484726,0.0113928,87836.0,87817.0,0.0413952]
[1766646490039,0.00017074,87837.0,87817.0,0.03]
[1766646490233,0.00017074,87837.0,87825.0,0.0113941]
[1766646490435,0.00017074,87837.0,87825.0,0.0413941]
[1766646490938,0.02481783,87836.0,87825.0,0.0413941]
[1766646491138,0.02481783,87835.0,87825.0,0.0413941]
[1766646491337,0.02481783,87834.0,87825.0,0.0413941]
[1766646491533,0.00017074,87837.0,87825.0,0.0413941]
[1766646491734,0.02481555,87836.0,87825.0,0.0413941]
[1766646491934,0.02481555,87835.0,87825.0,0.0413941]
[1766646492238,0.00017074,87837.0,87825.0,0.0413941]
[1766646492439,0.02481383,87836.0,87825.0,0.0413941]
[1766646492640,0.02481383,87835.0,87825.0,0.0413941]
[1766646492839,0.00017074,87837.0,87825.0,0.0413941]
[1766646493141,0.02481383,87836.0,87825.0,0.0413941]
[1766646493337,0.02481383,87835.0,87825.0,0.0413941]
[1766646493537,0.00017074,87837.0,87825.0,0.0413941]
[1766646493737,0.02481239,87836.0,87825.0,0.0413941]
[1766646494033,0.02481239,87835.0,87825.0,0.03]
[1766646494241,0.00017074,87837.0,87825.0,0.03]
[1766646494533,0.02481139,87836.0,87825.0,0.03]
[1766646494737,0.02481139,87835.0,87825.0,0.03]
[1766646494938,0.00017074,87837.0,87825.0,0.03]
[1766646495142,0.02481127,87836.0,87825.0,0.03]
[1766646495331,0.00017074,87837.0,87825.0,0.03]
[1766646498644,0.003,87843.0,87825.0,0.03]
[1766646499437,0.04097234,87850.0,87825.0,0.03]
[1766646499636,0.00017074,87846.0,87829.0,0.00017074]
[1766646499836,0.00017074,87846.0,87829.0,0.03017074]
[1766646500733,0.00017074,87846.0,87829.0,0.04156434]
[1766646503145,0.00017074,87846.0,87829.0,0.03017074]
[1766646505663,0.0113916,87845.0,87829.0,0.03017074]
[1766646510962,0.00017074,87846.0,87829.0,0.03017074]
[1766646511167,0.00017074,87846.0,87836.0,0.0113927]
[1766646511352,0.00227628,87863.0,87836.0,0.0413927]
[1766646511353,0.0195102,87856.0,87836.0,0.0413927]
[1766646511553,0.0113899,87859.0,87836.0,0.03]
[1766646512062,0.0371899,87859.0,87836.0,0.03]
[1766646512263,0.00017049,87856.0,87840.0,0.0113922]
[1766646512468,0.00017049,87856.0,87840.0,0.0413922]
[1766646515763,0.00227628,87863.0,87840.0,0.03]
[1766646516576,0.00227628,87863.0,87847.0,0.0113913]
[1766646516871,0.00227628,87863.0,87847.0,0.03]
[1766646525479,0.02457144,87862.0,87847.0,0.03]
[1766646525681,0.00227628,87863.0,87847.0,0.03]
[1766646525879,0.02457144,87862.0,87847.0,0.03]
[1766646526079,0.02457144,87861.0,87847.0,0.03]
[1766646526380,0.02457144,87860.0,87847.0,0.03]
[1766646526575,0.00227628,87863.0,87847.0,0.03]
[1766646526779,0.02457291,87862.0,87847.0,0.03]
[1766646526972,0.02457291,87861.0,87847.0,0.03]
[1766646527280,0.02457291,87860.0,87847.0,0.03]
[1766646527579,0.0113894,87862.0,87847.0,0.03]
[1766646527781,0.024575,87861.0,87847.0,0.03]